fUSD/lending_fUSD_20240119
["ID","MTS","AMOUNT","RATE_DAILY","PERIOD"]
[312117190,1705643432537,-2172.92551066,0.00021818,2]
[312117191,1705643432549,-333.00815705,0.00021818,2]
[312117192,1705643432560,-947.9858159,0.00021818,2]
[312117193,1705643432588,-502.78406741,0.00021818,2]
[312117221,1705643438163,-3867.60000014,0.00021818,2]
[312117222,1705643438712,-253.89399304,0.00021818,2]
[312117223,1705643438724,-3549.10259322,0.00021818,2]
[312117224,1705643438776,-93484.42613502,0.00021818,2]
[312117225,1705643438789,-500.0,0.00021835,2]
[312117226,1705643438798,-500.0,0.00021896,2]
[312117227,1705643438807,-223.7573,0.00021899,2]
[312117228,1705643438817,-309.9094,0.00021899,2]
[312117229,1705643438826,-353.42,0.000219,2]
[312117230,1705643438836,-864.275342,0.000219,2]
[312117231,1705643438844,-460.79923043,0.000219,2]
[312117232,1705643438854,-168.47,0.0002191,2]
[312117233,1705643438865,-8029.2755987,0.00021917,2]
[312117234,1705643438876,-333.51,0.00021918,2]
[312117235,1705643438885,-250.0,0.00021918,2]
[312117236,1705643438895,-2500.0,0.00021918,3]
[312117237,1705643438904,-864.27534181,0.00021935,2]
[312117238,1705643438914,-202.0,0.00021936,2]
[312117239,1705643438923,-203.99998,0.00021936,2]
[312117240,1705643438932,-211.28,0.00021948,2]
[312117241,1705643438942,-5000.0,0.0002195,2]
[312117242,1705643438952,-266.75,0.00021981,2]
[312117243,1705643438961,-864.27534181,0.00021988,2]
[312117244,1705643438971,-1381.61526335,0.00021997,2]
[312117245,1705643438980,-1068.56388795,0.00021998,2]
[312117246,1705643438989,-3827.83488758,0.00021999,2]
[312117247,1705643438999,-28.9516956,0.00021999,2]
[312117248,1705643439036,-858.74623956,0.00021999,2]
[312117249,1705643439052,-462.2961555,0.00021999,2]
[312117255,1705643440627,-425.024,0.00021999,2]
[312117470,1705643443234,-4401.69940052,0.00021999,2]
[312117472,1705643443245,-1371.00198211,0.00021999,2]
[312117489,1705643443395,-1267.53629767,0.00021999,2]
[312117651,1705643446176,-22292.12613419,0.00021999,2]
[312117652,1705643446188,-19845.27820285,0.00021999,2]
[312117653,1705643446200,-2167.77944775,0.00021999,2]
[312117654,1705643446340,-2347.46759022,0.00021999,2]
[312117655,1705643446396,-4126.92025757,0.00021999,2]
[312117656,1705643446406,-500.0,0.00021999,2]
[312117657,1705643446415,-2493.68103534,0.00022,2]
[312117658,1705643446427,-2752.39499908,0.00022,2]
[312117659,1705643446452,-2488.69502489,0.00022,2]
[312117660,1705643446508,-443.06632556,0.00022,2]
[312117664,1705643456165,1078.39436255,0.0002156,2]
[312117665,1705643462846,456.11054867,0.0002024,2]
[312117666,1705643486138,500.0,0.0002024,2]
[312117667,1705643486980,500.0,0.00021336,2]
[312117671,1705643661181,214.18,0.00021138,2]
[312117672,1705643695488,262.97,0.00021138,2]
[312117673,1705643695879,156.62,0.00021138,2]
[312117674,1705643696726,220.02,0.00019221,2]
[312117675,1705643696776,220.02,0.00021484,2]
[312117687,1705643873202,155.86,0.0002101,10]
[312117688,1705643875722,157.94,0.0002122,2]
[312117689,1705643898440,160.6489126,0.00021534,2]
[312117690,1705643920892,444.31,0.00020998,2]
[312117696,1705644033459,1631.04,0.00021196,2]
[312117697,1705644056169,934.19,0.00021042,2]
[312117698,1705644118137,160.32,0.00021011,2]
[312117699,1705644167972,209.44,0.00019081,2]
[312117700,1705644168407,209.44,0.00021345,2]
[312117709,1705644260803,245.43,0.00021006,2]
[312117711,1705644311630,153.99,0.00021017,10]
[312117715,1705644343813,160.6489126,0.00021534,2]
[312117716,1705644377270,644.55,0.00021013,2]
[312117718,1705644408039,500.0,0.00021013,2]
[312117719,1705644417268,157.87,0.00021209,2]
[312117724,1705644453783,202.0,0.00021474,2]
[312117728,1705644555793,155.57,0.00020977,2]
[312117791,1705644632339,-226.07837223,0.00021605,2]
[312117792,1705644632351,-155.57,0.00021606,2]
[312117793,1705644632361,-727.92,0.00021633,2]
[312117794,1705644632371,-64.99179988,0.00021633,2]
[312117795,1705644632387,-660.94820012,0.00021633,2]
[312117796,1705644632397,-189.05179988,0.00021634,2]
[312117797,1705644632409,-540.41820012,0.00021634,2]
[312117798,1705644632419,-710.38,0.00021634,2]
[312117799,1705644632428,-500.0,0.00021717,2]
[312117800,1705644632438,-713.71,0.00021727,2]
[312117801,1705644632447,-659.6227,0.00021897,2]
[312117802,1705644632457,-457.5831,0.00021898,2]
[312117803,1705644632467,-150.0,0.00021899,2]
[312117804,1705644632477,-1000.0,0.000219,2]
[312117805,1705644632487,-734.6340407,0.000219,2]
[312117806,1705644632497,-300.41,0.000219,2]
[312117807,1705644632506,-905.05544564,0.00021907,2]
[312117808,1705644632516,-500.0,0.00021911,2]
[312117809,1705644632526,-383.3412354,0.00021918,2]
[312117810,1705644632553,-351.29280513,0.00021918,2]
[312117811,1705644632563,-105.51779133,0.00021918,2]
[312117812,1705644632575,-144.48220867,0.00021918,2]
[312117813,1705644632585,-172.18,0.00021918,3]
[312117814,1705644632598,-319.0,0.00021948,2]
[312117815,1705644632607,-873.0,0.00021948,2]
[312117816,1705644632617,-57.30904012,0.00021949,2]
[312117819,1705644632638,-350.0,0.00021949,2]
[312117822,1705644632649,-329.66712704,0.00021949,2]
[312117824,1705644632662,-2199.20750743,0.00021949,2]
[312117826,1705644632673,-9606.00301058,0.00021949,2]
[312117828,1705644632685,-250.0,0.00021949,2]
[312117833,1705644632701,-47131.82863344,0.00021949,2]
[312117872,1705644633966,188.49,0.00019649,2]
[312117874,1705644638308,-188.49,0.00021913,2]
[312117875,1705644638318,-2488.2283764,0.00021949,2]
[312117876,1705644638365,-2333.36605109,0.00021949,2]
[312117877,1705644638377,-2111.28673748,0.00021949,2]
[312117878,1705644638421,-1515.41661748,0.00021949,2]
[312117879,1705644638533,-5096.04734155,0.00021949,2]
[312117880,1705644638546,-47330.58641668,0.00021949,2]
[312117881,1705644638555,-5000.0,0.0002195,2]
[312117882,1705644638565,-734.63404053,0.00021972,2]
[312117883,1705644638575,-2906.0,0.00021982,2]
[312117884,1705644638584,-2444.955,0.00021982,2]
[312117885,1705644638593,-2274.0,0.00021982,2]
[312117886,1705644638603,-16325.95,0.00021982,2]
[312117887,1705644638612,-256.212,0.00021982,2]
[312117888,1705644638623,-245.43,0.00021984,2]
[312117889,1705644638633,-25057.97578873,0.00021997,2]
[312117890,1705644638644,-1366.89941521,0.00021998,2]
[312117891,1705644638653,-321.01810769,0.00021998,2]
[312117892,1705644638662,-42.94668989,0.00021998,2]
[312117893,1705644638677,-115.44950238,0.00021998,2]
[312117894,1705644638687,-376.1966343,0.00021998,2]
[312118045,1705644640962,-4126.8,0.00021998,2]
[312118046,1705644640978,-2767.31241176,0.00021998,2]
[312118047,1705644642230,1085.99491683,0.00021558,2]
[312118050,1705644643345,-252.42,0.00021982,2]
[312118051,1705644643358,-510.33319661,0.00021982,2]
[312118052,1705644643368,-381.21827373,0.00021998,2]
[312118053,1705644643528,-930.94625846,0.00021998,2]
[312118054,1705644643541,-3337.47551585,0.00021998,2]
[312118055,1705644643552,-3358.41649054,0.00021998,2]
[312118086,1705644646894,-405.2,0.00021998,2]
[312118088,1705644661269,296.51109517,0.00021118,2]
[312118089,1705644694124,500.0,0.0002024,2]
[312118090,1705644694888,500.0,0.00021336,2]
[312118091,1705644764169,359.49496954,0.0002024,2]
[312118092,1705644831108,500.0,0.0002024,2]
[312118093,1705644837751,484.36,0.00021079,2]
[312118094,1705644851846,156.54,0.00021222,2]
[312118095,1705644852498,153.99,0.00021064,10]
[312118096,1705644875249,159.66,0.00021284,2]
[312118097,1705645134477,240.43,0.00021096,2]
[312118098,1705645259202,201.08,0.00019144,2]
[312118099,1705645259429,201.08,0.00021408,2]
[312118100,1705645302507,152.7,0.00021062,10]
[312118101,1705645363987,203.0,0.00018826,2]
[312118106,1705645368523,203.0,0.00020831,2]
[312118108,1705645404779,612.51,0.00021161,2]
[312118125,1705645503832,202.0,0.00021042,2]
[312118136,1705645619133,236.42,0.0002108,2]
[312118146,1705645653490,159.49,0.00021056,2]
[312118147,1705645691527,190.24,0.00019133,2]
[312118148,1705645691565,190.24,0.00021397,2]
[312118173,1705645777065,157.94,0.00021321,2]
[312118222,1705645831647,-980.74463861,0.00021743,2]
[312118230,1705645831728,-707.00475493,0.00021743,2]
[312118231,1705645831746,-258.79883025,0.00021743,2]
[312118234,1705645831759,-663.93622624,0.00021743,2]
[312118332,1705645837853,-2697.71553036,0.00021743,2]
[312118333,1705645837865,-136.60250011,0.00021743,2]
[312118334,1705645837874,-150.0,0.00021743,2]
[312118335,1705645837884,-4763.133132,0.00021744,2]
[312118336,1705645837893,-177.83037644,0.00021746,2]
[312118337,1705645837902,-150.00000001,0.00021777,2]
[312118338,1705645837911,-186.7361,0.00021897,2]
[312118339,1705645837920,-627.27814143,0.00021899,2]
[312118340,1705645837929,-861.172,0.00021899,2]
[312118341,1705645837938,-19133.17801413,0.00021899,2]
[312118342,1705645837947,-1143.50521768,0.000219,2]
[312118343,1705645837956,-255.35,0.000219,2]
[312118344,1705645837966,-1754.52715266,0.000219,2]
[312118345,1705645837975,-500.0,0.00021911,2]
[312118346,1705645837984,-250.0,0.00021918,2]
[312118347,1705645837993,-5000.0,0.0002195,2]
[312118348,1705645838002,-1754.52715258,0.00021952,2]
[312118349,1705645838011,-265.19256289,0.00021997,2]
[312118350,1705645838020,-281.61792127,0.00021997,2]
[312118352,1705645838029,-174.42301013,0.00021998,2]
[312118354,1705645838038,-255.06498367,0.00021998,2]
[312118355,1705645838047,-2142.99004246,0.00021998,2]
[312118356,1705645838056,-2544.81389618,0.00021998,2]
[312118357,1705645838066,-369.27537599,0.00021998,2]
[312118358,1705645838075,-157.44782176,0.00021998,2]
[312118359,1705645838084,-169.69203815,0.00021998,2]
[312118360,1705645838093,-164.78321963,0.00021998,2]
[312118361,1705645838103,-736.18410069,0.00021998,2]
[312118362,1705645838112,-290.94321441,0.00021998,2]
[312118363,1705645838121,-5708.51954064,0.00021999,2]
[312118372,1705645840106,-743.57139367,0.00021999,2]
[312118373,1705645840177,-117206.66717219,0.00021999,2]
[312118405,1705645842573,-380.0000097,0.00021999,2]
[312118406,1705645842797,-60993.53773825,0.00021999,2]
[312118407,1705645842807,-500.0,0.00021999,2]
[312118408,1705645842817,-75758.246915,0.00022,2]
[312118409,1705645842826,-155.0,0.00022,2]
[312118410,1705645842835,-550.0,0.00022,3]
[312118411,1705645842844,-2000.0,0.00022,2]
[312118413,1705645842853,-200.0,0.00022,2]
[312118415,1705645842863,-1754.52715258,0.00022004,2]
[312118417,1705645842872,-150.0,0.00022007,2]
[312118419,1705645842881,-150.0,0.00022007,2]
[312118421,1705645842891,-316.95,0.00022029,2]
[312118423,1705645842900,-2274.0,0.00022029,2]
[312118425,1705645842909,-897.622,0.00022029,2]
[312118427,1705645842918,-2515.059,0.00022029,2]
[312118429,1705645842928,-836.0,0.00022029,2]
[312118431,1705645842937,-1854.0,0.00022029,2]
[312118433,1705645842947,-1233.0,0.00022029,2]
[312118435,1705645842957,-1250.0,0.00022029,2]
[312118437,1705645842967,-1934.0,0.00022029,2]
[312118439,1705645842976,-805.184,0.00022029,2]
[312118441,1705645842985,-426.0,0.00022029,2]
[312118443,1705645842994,-1754.52715258,0.00022057,2]
[312118445,1705645843005,-236.42,0.00022058,2]
[312118447,1705645843015,-150.0,0.000221,2]
[312118449,1705645843024,-150.0,0.000221,2]
[312118451,1705645843034,-150.0,0.000221,2]
[312118453,1705645843044,-150.0,0.000221,2]
[312118455,1705645843053,-408.64,0.000221,2]
[312118457,1705645843062,-328.77,0.000221,2]
[312118458,1705645843072,-256.7,0.000221,2]
[312118460,1705645843082,-820.96,0.000221,2]
[312118462,1705645843092,-150.0,0.000221,2]
[312118463,1705645843102,-293.13,0.000221,2]
[312118464,1705645843111,-314.65,0.000221,2]
[312118466,1705645843121,-159.49,0.00022108,2]
[312118467,1705645843129,-1754.52715258,0.0002211,2]
[312118468,1705645843139,-1754.52715258,0.00022162,2]
[312118469,1705645843148,-204.310091,0.00022171,2]
[312118470,1705645843157,-150.0,0.000222,2]
[312118471,1705645843166,-314.65,0.000222,2]
[312118472,1705645843175,-314.65,0.000222,2]
[312118473,1705645843184,-314.65,0.000222,2]
[312118474,1705645843193,-314.65,0.000222,2]
[312118475,1705645843202,-314.65,0.000222,2]
[312118476,1705645843211,-314.65,0.000222,2]
[312118477,1705645843220,-314.65,0.000222,2]
[312118478,1705645843229,-314.65,0.000222,2]
[312118479,1705645843238,-634.32,0.000222,2]
[312118480,1705645843248,-314.65,0.000222,2]
[312118481,1705645843258,-314.65,0.000222,2]
[312118482,1705645843267,-314.65,0.000222,2]
[312118483,1705645843276,-314.65,0.000222,2]
[312118484,1705645843285,-314.65,0.000222,2]
[312118485,1705645843294,-314.65,0.000222,2]
[312118486,1705645843304,-314.65,0.000222,2]
[312118487,1705645843313,-725.0,0.000222,2]
[312118488,1705645843322,-1754.52715258,0.00022215,2]
[312118489,1705645843331,-2000.0,0.0002222,2]
[312118490,1705645843340,-155.57,0.00022236,2]
[312118491,1705645843350,-150.0,0.000223,2]
[312118492,1705645843359,-200.0,0.00022344,2]
[312118493,1705645843368,-800.0,0.00022344,2]
[312118494,1705645843377,-314.52,0.00022356,2]
[312118495,1705645843387,-168.47,0.0002236,2]
[312118496,1705645843396,-1084.45577089,0.0002244,2]
[312118497,1705645843405,-500.0,0.00022547,2]
[312118498,1705645843414,-159.66,0.00022618,2]
[312118499,1705645843423,-160.0,0.00022766,2]
[312118500,1705645843432,-200.0,0.00022795,2]
[312118501,1705645843441,-800.0,0.00022795,2]
[312118502,1705645843450,-168.47,0.0002281,2]
[312118503,1705645843459,-155.57,0.00022865,2]
[312118504,1705645843469,-4489.33496308,0.0002288,2]
[312118505,1705645843490,-374.67291042,0.00022898,2]
[312118506,1705645843499,-1064.18379657,0.00022898,2]
[312118507,1705645843509,-55555.0,0.000229,2]
[312118508,1705645843519,-362.4488,0.000229,2]
[312118509,1705645843529,-1965.832539,0.000229,2]
[312118510,1705645843543,-155.02009418,0.000229,2]
[312118511,1705645843552,-246.34269298,0.000229,2]
[312118512,1705645843562,-180.22241401,0.000229,2]
[312118513,1705645843571,-2193.87356557,0.000229,2]
[312118514,1705645843581,-295.69194201,0.000229,6]
[312118515,1705645843590,-609.79885532,0.000229,2]
[312118516,1705645843600,-1728.6883412,0.000229,2]
[312118517,1705645843610,-1486.83075277,0.000229,2]
[312118518,1705645843621,-197.35431103,0.0002297,2]
[312118519,1705645843631,-151.0,0.00022974,7]
[312118520,1705645843640,-151.0,0.00022974,7]
[312118521,1705645843650,-398.85973997,0.00022974,2]
[312118522,1705645843659,-12919.4050359,0.00022974,2]
[312118523,1705645843669,-1794.1244803,0.00022974,2]
[312118524,1705645843678,-10052.6003333,0.00022974,2]
[312118525,1705645843687,-284.2863171,0.00022974,2]
[312118526,1705645843697,-9749.3989999,0.00022974,2]
[312118527,1705645843706,-983.3512325,0.00022974,2]
[312118528,1705645843715,-4337.2363333,0.00022974,2]
[312118529,1705645843724,-217.10488323,0.00022978,2]
[312118530,1705645843734,-207.2278993,0.00022978,2]
[312118531,1705645843743,-498.45708816,0.00022978,2]
[312118532,1705645843752,-155.27651944,0.00022978,2]
[312118533,1705645843762,-150.01,0.00022979,2]
[312118534,1705645843771,-1067.75303112,0.00022979,2]
[312118535,1705645843781,-1296.0,0.0002298,2]
[312118536,1705645843790,-101932.83893798,0.0002298,2]
[312118537,1705645843800,-342407.92301999,0.0002298,2]
[312118540,1705645845591,-314.65,0.000222,2]
[312118541,1705645845600,-1008.17143689,0.0002252,2]
[312118565,1705645966907,1348.26845816,0.00021,2]
[312118567,1705646213932,180.55,0.00019782,2]
[312118568,1705646527778,226.56,0.0002159,2]
[312118569,1705646583682,202.0,0.0002064,2]
[312118570,1705646689955,180.39,0.00019774,2]
[312118571,1705646808876,509.99,0.0002154,2]
[312118633,1705647035039,-624.42806938,0.00021666,2]
[312118634,1705647035050,-152.7,0.00021667,10]
[312118635,1705647035062,-490.01,0.00021682,2]
[312118636,1705647035072,-151.8,0.00021692,2]
[312118637,1705647035083,-178.71,0.00021715,2]
[312118638,1705647035094,-159.82,0.0002174,2]
[312118639,1705647035105,-156.48,0.00021846,2]
[312118640,1705647035115,-157.87,0.00021848,2]
[312118641,1705647035125,-173.91457047,0.00021866,2]
[312118642,1705647035135,-217.05,0.000219,2]
[312118643,1705647035150,-250.0,0.00021918,2]
[312118644,1705647035160,-1630.2664136,0.0002195,2]
[312118645,1705647035173,-3369.7335864,0.0002195,2]
[312118646,1705647035183,-244.7892016,0.00021966,2]
[312118731,1705647038037,-484.3707984,0.00021966,2]
[312118732,1705647038047,-720.09,0.00021986,2]
[312118733,1705647038056,-550.0,0.00022,3]
[312118734,1705647038066,-180.39,0.00022037,2]
[312118735,1705647038075,-150.0,0.0002204,2]
[312118736,1705647038084,-718.82,0.00022041,2]
[312118737,1705647038093,-202.0,0.000221,2]
[312118738,1705647038102,-836.0,0.00022137,2]
[312118739,1705647038112,-1250.0,0.00022137,2]
[312118740,1705647038121,-1233.0,0.00022137,2]
[312118741,1705647038130,-319.945,0.00022137,2]
[312118742,1705647038140,-426.0,0.00022137,2]
[312118743,1705647038152,-2274.0,0.00022137,2]
[312118744,1705647038162,-731.27,0.00022254,2]
[312118745,1705647038172,-11845.32906998,0.00022478,2]
[312118746,1705647038182,-3195.74582437,0.0002252,2]
[312118747,1705647038191,-155.0,0.0002252,2]
[312118748,1705647038201,-226.56,0.00022569,2]
[312118749,1705647038210,-800.0,0.00022795,2]
[312118750,1705647038219,-213.022765,0.00022796,2]
[312118751,1705647038229,-800.0,0.00022796,2]
[312118752,1705647038238,-1140.44264931,0.00022882,2]
[312118753,1705647038247,-1140.44264917,0.00022883,2]
[312118754,1705647038256,-1140.44264917,0.00022884,2]
[312118755,1705647038266,-1140.44264917,0.00022885,2]
[312118756,1705647038275,-1140.44264917,0.00022886,2]
[312118757,1705647038284,-1140.44264917,0.00022887,2]
[312118758,1705647038294,-1140.44264917,0.00022888,2]
[312118759,1705647038303,-1140.44264917,0.00022889,2]
[312118760,1705647038312,-1140.44264917,0.0002289,2]
[312118761,1705647038322,-661.92086663,0.00022891,2]
[312118978,1705647040340,-478.52178254,0.00022891,2]
[312118981,1705647040349,-1140.44264917,0.00022891,2]
[312118984,1705647040358,-1071.3745634,0.00022892,2]
[312118987,1705647040369,-69.06808577,0.00022892,2]
[312118990,1705647040378,-1140.44264917,0.00022893,2]
[312118993,1705647040387,-119.68380292,0.00022893,2]
[312119022,1705647040531,-40.31619708,0.00022893,2]
[312119025,1705647040541,-425.53107736,0.00022894,2]
[312119028,1705647040554,-714.91157181,0.00022894,2]
[312119031,1705647040564,-1140.44264917,0.00022895,2]
[312119035,1705647040574,-52.02694728,0.00022896,2]
[312119043,1705647040610,-1088.41570189,0.00022896,2]
[312119046,1705647040619,-1140.44264917,0.00022897,2]
[312119049,1705647040629,-532.50248823,0.00022898,2]
[312119052,1705647040639,-186.35252227,0.00022898,2]
[312119055,1705647040650,-303.2706399,0.00022898,2]
[312119058,1705647040660,-400.25276388,0.00022898,2]
[312119061,1705647040669,-155.61114772,0.00022898,2]
[312119064,1705647040678,-187.96504818,0.00022898,2]
[312119295,1705647043457,-150.0,0.00022137,2]
[312119297,1705647043467,-141.39717942,0.00022898,2]
[312119299,1705647043477,-300.1544001,0.00022898,2]
[312119301,1705647043489,-1028.29080958,0.00022898,2]
[312119304,1705647043498,-1140.44264917,0.00022898,2]
[312119306,1705647043507,-236.5535536,0.00022899,6]
[312119307,1705647043517,-629.95148082,0.00022899,2]
[312119309,1705647043526,-1152.45889412,0.00022899,2]
[312119311,1705647043535,-406.53257022,0.00022899,2]
[312119313,1705647043544,-1140.44264917,0.00022899,2]
[312119316,1705647043554,-855.8899,0.000229,2]
[312119318,1705647043565,-1000.0,0.000229,2]
[312119320,1705647043574,-4115.22371612,0.000229,2]
[312119322,1705647043583,-150.0,0.000229,2]
[312119324,1705647043593,-155.02009418,0.000229,2]
[312119326,1705647043601,-1140.44264917,0.000229,2]
[312119328,1705647043611,-164.22846198,0.000229,2]
[312119330,1705647043620,-991.22050184,0.000229,2]
[312119332,1705647043634,-162.76685161,0.00022978,2]
[312119334,1705647043646,-2845.92303357,0.00022978,2]
[312119337,1705647043662,-250.67696643,0.00022978,2]
[312119339,1705647043673,-278.01938655,0.00022978,2]
[312119341,1705647043683,-263.2279782,0.00022978,2]
[312119343,1705647043694,-109.0067159,0.00022978,2]
[312119359,1705647043836,-390.9932841,0.00022978,2]
[312119361,1705647043848,-215.32122824,0.00022979,2]
[312119363,1705647043858,-711.83535408,0.00022979,2]
[312119364,1705647043868,-7425.18548083,0.00022979,2]
[312119366,1705647043879,-1385.05407101,0.0002298,2]
[312119594,1705647046154,-278.24112876,0.0002244,2]
[312119597,1705647046175,-657.9988095,0.0002244,2]
[312119611,1705647046294,-145.13381525,0.0002244,2]
[312119613,1705647046304,-159.23717674,0.000229,2]
[312119622,1705647046376,-802.06994,0.000229,2]
[312119629,1705647046438,-501.27526032,0.000229,2]
[312119631,1705647046447,-6938.41963968,0.0002298,2]
[312119634,1705647046459,-362.84292556,0.0002298,2]
[312120551,1705647111890,500.0,0.0002024,2]
[312120552,1705647112659,500.0,0.00021336,2]
[312120553,1705647133408,551.47282714,0.00021336,2]
[312120554,1705647134015,21208.70072832,0.00021336,2]
[312120555,1705647152822,1894.70423787,0.00021336,2]
[312120556,1705647168483,155.0,0.00021336,2]
[312120557,1705647170816,989.65552277,0.00021336,2]
[312120558,1705647184488,159.33142403,0.00021336,2]
[312120560,1705647293847,179.19,0.00019863,2]
[312120561,1705647333351,151.0,0.00028013,120]
[312120562,1705647716210,151.0,0.00028081,120]
[312120563,1705647733504,170.23,0.00019735,2]
[312120564,1705647920443,250.0,0.00021473,2]
[312120565,1705647966308,152.91,0.00021558,2]
[312120570,1705647994272,202.0,0.00021468,2]
[312120602,1705648166363,151.0,0.00028197,120]
[312120605,1705648225456,161.71,0.00019621,2]
[312120608,1705648232733,-624.42806938,0.00021605,2]
[312120609,1705648232764,-223.07422577,0.00021606,4]
[312120610,1705648232789,-218.75,0.00021616,2]
[312120611,1705648232809,-167.66,0.00021624,2]
[312120612,1705648233035,-175.28,0.00021626,2]
[312120613,1705648233072,-408.0,0.00021639,2]
[312120614,1705648233097,-19.45528985,0.00021747,2]
[312120621,1705648233286,-572.54471015,0.00021747,2]
[312120623,1705648233311,-157.94,0.00021856,2]
[312120624,1705648233337,-161.71,0.00021885,2]
[312120625,1705648233368,-786.78224125,0.000219,2]
[312120626,1705648233842,-1242.028,0.000219,2]
[312120681,1705648238603,-1092.0649717,0.000219,2]
[312120683,1705648238618,-395.04478705,0.000219,2]
[312120685,1705648238633,-184.49,0.000219,2]
[312120686,1705648238643,-250.0,0.00021918,2]
[312120687,1705648238657,-150.0,0.00021949,2]
[312120688,1705648238668,-5000.0,0.0002195,2]
[312120689,1705648238683,-724.03,0.00021963,2]
[312120690,1705648238697,-720.49,0.00021979,2]
[312120691,1705648238707,-159.42,0.00021983,2]
[312120692,1705648238725,-713.43,0.00021999,2]
[312120693,1705648238736,-303.64036239,0.00022,2]
[312120694,1705648238746,-352.1,0.00022,2]
[312120695,1705648238758,-256.96,0.00022,2]
[312120696,1705648238769,-550.0,0.00022,3]
[312120697,1705648238780,-1566.49441096,0.00022104,2]
[312120698,1705648238794,-707.50558904,0.00022104,2]
[312120699,1705648238807,-178.5001406,0.00022137,2]
[312120700,1705648238822,-78.4598594,0.00022137,2]
[312120701,1705648238833,-547.68312613,0.00022137,2]
[312120702,1705648238889,-392.92178369,0.00022137,2]
[312120703,1705648238947,-309.39509018,0.00022137,2]
[312120704,1705648238967,-483.79291685,0.00022137,2]
[312120705,1705648239023,-342.82992223,0.00022137,2]
[312120711,1705648240798,-365.49689089,0.00022137,2]
[312120712,1705648240818,-40.88027003,0.00022137,2]
[312120713,1705648240837,-207.94,0.00022197,2]
[312120714,1705648240862,-270.35526785,0.00022274,2]
[312120715,1705648240876,-716.5,0.00022297,2]
[312120716,1705648240899,-545.20769325,0.000225,2]
[312120717,1705648240918,-6612.06454587,0.00022515,2]
[312120718,1705648240943,-898.86684566,0.00022515,2]
[312120719,1705648240975,-669.84895923,0.00022515,2]
[312120735,1705648250533,-16929.21964924,0.00022515,2]
[312120736,1705648250552,-1099.4967017,0.0002252,2]
[312120737,1705648250574,-218.75,0.00022594,2]
[312120738,1705648250586,-800.0,0.00022796,2]
[312120739,1705648250615,-908.56723067,0.00022865,2]
[312120740,1705648250632,-1048.65855759,0.00022878,2]
[312120741,1705648250650,-3563.667,0.00022878,2]
[312120742,1705648250665,-1000.0,0.00022878,2]
[312120743,1705648250685,-2796.4728,0.00022878,2]
[312120744,1705648250702,-160.0,0.00022878,2]
[312120745,1705648250726,-171.17894808,0.00022882,2]
[312120746,1705648250758,-219.84137367,0.00022882,2]
[312120747,1705648250779,-171.17894808,0.00022888,2]
[312120748,1705648250796,-219.84137366,0.0002289,2]
[312120749,1705648250830,-171.17894808,0.00022894,2]
[312120750,1705648250854,-608.01993687,0.00022896,2]
[312120751,1705648250868,-608.01993687,0.00022897,2]
[312120752,1705648250884,-608.01993687,0.00022898,2]
[312120753,1705648250912,-4005.82743802,0.00022898,2]
[312120754,1705648250931,-219.84137366,0.00022898,2]
[312120755,1705648250945,-51836.3425,0.00022899,2]
[312120756,1705648250971,-608.01993687,0.00022899,2]
[312120757,1705648250989,-718.31,0.000229,2]
[312120758,1705648251009,-500.0,0.000229,2]
[312120759,1705648251028,-60095.42534215,0.000229,2]
[312120760,1705648251052,-328.45692396,0.000229,2]
[312120761,1705648251069,-155.02009418,0.000229,2]
[312120762,1705648251088,-3426.4400144,0.000229,2]